bitfinex/quotes_ETHUSD_20230105
["timestamp","ask_amount","ask_price","bid_price","bid_amount"]
[1672931402453,20.9761,1252.2,1251.9,16.0080449]
[1672931402877,20.9761,1252.2,1251.9,23.9958949]
[1672931402878,12.98994,1252.2,1251.9,23.9958949]
[1672931403144,5.004,1252.2,1251.9,23.9958949]
[1672931403463,12.98997,1252.2,1251.9,23.9958949]
[1672931403678,20.97594,1252.2,1251.9,23.9958949]
[1672931403865,12.98997,1252.2,1251.9,16.0080449]
[1672931404083,5.004,1252.2,1251.9,23.9958949]
[1672931404298,12.98999,1252.2,1251.9,23.9958949]
[1672931404461,23.94829256,1252.2,1251.9,16.0080449]
[1672931404670,31.93428256,1252.2,1251.9,0.06534863]
[1672931404917,31.93428256,1252.2,1251.8,14.06534863]
[1672931405141,18.94605256,1252.1,1251.8,18.05449814]
[1672931405336,23.96476,1252.1,1251.8,26.04289814]
[1672931405673,26.93707256,1252.1,1251.8,26.04283814]
[1672931405822,23.96476,1252.1,1251.8,18.05449814]
[1672931406039,0.004,1252.1,1251.9,3.98914951]
[1672931406249,23.94870256,1252.2,1251.9,3.98914951]
[1672931406620,23.94870256,1252.2,1251.9,19.96476951]
[1672931406621,15.96236256,1252.2,1251.9,19.96476951]
[1672931406768,31.93476256,1252.2,1251.9,16.6753627]
[1672931406982,31.93476256,1252.2,1251.9,24.6632127]
[1672931406983,15.96225256,1252.2,1251.9,24.6632127]
[1672931407464,23.94819256,1252.2,1251.9,24.6632127]
[1672931407613,12.98994,1252.2,1251.9,24.6632127]
[1672931407825,12.98994,1252.2,1251.9,32.6510627]
[1672931408282,5.004,1252.2,1251.9,32.6510627]
[1672931409539,10.96228256,1252.2,1251.9,32.6510627]
[1672931409837,0.004,1252.2,1251.9,32.6510627]
[1672931410065,26.93342256,1252.3,1251.9,32.6510627]
[1672931410301,2.97231256,1252.2,1251.9,16.67274299]
[1672931410496,7.98658,1252.1,1251.9,16.67274299]
[1672931410660,0.004,1252.1,1251.9,24.66059299]
[1672931411032,11.02033256,1252.2,1251.8,15.9763]
[1672931411033,18.94861256,1252.2,1251.8,15.9763]
[1672931411184,10.80146538,1252.0,1251.9,0.015]
[1672931411394,29.44069833,1252.0,1251.6,0.05]
[1672931411626,10.97324719,1251.9,1251.6,0.05]
[1672931411968,11.02924719,1251.9,1251.6,0.05]
[1672931412318,5.0,1251.8,1251.6,0.05]
[1672931412509,5.056,1251.8,1251.6,0.05]
[1672931412699,0.056,1251.8,1251.6,0.05]
[1672931412913,18.96249719,1251.8,1251.6,0.05]
[1672931413108,3.04131719,1251.8,1251.6,0.05]
[1672931413480,2.98531719,1251.8,1251.6,0.05]
[1672931413668,2.98531719,1251.7,1251.6,0.05]
[1672931413885,18.96357719,1251.7,1251.6,0.05]
[1672931414066,19.01957719,1251.7,1251.6,0.05]
[1672931414276,19.61616613,1251.7,1251.6,0.05]
[1672931414492,3.5,1251.6,1251.4,0.03622148]
[1672931414697,23.97123,1251.5,1251.4,0.03622148]
[1672931414908,24.02723,1251.5,1251.4,0.03622148]
[1672931419446,29.02723,1251.5,1251.4,0.03622148]
[1672931420626,24.02723,1251.5,1251.4,0.03622148]
[1672931420847,26.12990983,1251.5,1251.4,0.03622148]
[1672931422211,31.12990983,1251.5,1251.4,0.03622148]
[1672931422577,34.11583303,1251.5,1251.4,0.03622148]
[1672931422788,34.11583303,1251.5,1251.4,1.48e-06]
[1672931423659,38.10498254,1251.5,1251.4,1.48e-06]
[1672931424579,35.11905934,1251.5,1251.4,1.48e-06]
[1672931425197,38.10498254,1251.5,1251.4,1.48e-06]
[1672931425577,40.38297,1251.3,1251.1,0.03966884]
[1672931425788,4.58904951,1251.2,1251.1,0.03966884]
[1672931425939,24.57686,1251.2,1251.1,0.03966884]
[1672931426147,24.63286,1251.2,1251.1,0.03966884]
[1672931426372,24.03296,1251.2,1251.1,0.03966884]
[1672931426830,29.03296,1251.2,1251.1,0.03966884]
[1672931427046,30.13688472,1251.2,1251.1,0.03966884]
[1672931427938,30.13688472,1251.2,1251.1,2.54866884]
[1672931428148,5.056,1251.2,1251.1,0.80766884]
[1672931428613,5.056,1251.2,1251.1,1.28622809]
[1672931428614,0.056,1251.2,1251.1,1.28622809]
[1672931428826,5.01,1251.3,1251.1,1.42580119]
[1672931428827,13.04778,1251.3,1251.1,1.42580119]
[1672931429458,5.056,1251.3,1251.1,1.42580119]
[1672931429611,5.056,1251.3,1251.1,9.41871119]
[1672931429827,0.056,1251.3,1251.1,9.48971119]
[1672931430030,31.91421,1251.5,1251.1,9.48971119]
[1672931431331,0.05,1251.3,1251.1,1.49680119]
[1672931431514,24.02575,1251.3,1251.1,1.42580119]
[1672931431723,8.09768,1251.3,1251.1,1.42580119]
[1672931432467,24.08123,1251.3,1251.1,1.42580119]
[1672931432710,16.08936,1251.3,1251.1,1.42580119]
[1672931433045,16.08936,1251.3,1251.1,0.17924194]
[1672931433259,16.03936,1251.3,1251.1,0.28824194]
[1672931433401,24.03104,1251.3,1251.1,0.28824194]
[1672931433821,24.03104,1251.3,1251.1,0.03966884]
[1672931435338,1.741,1251.2,1251.1,0.03966884]
[1672931435586,25.71796,1251.2,1251.1,0.03966884]
[1672931435731,25.77396,1251.2,1251.1,0.03966884]
[1672931436404,30.77396,1251.2,1251.1,0.03966884]
[1672931436574,34.651524,1251.2,1251.1,0.03966884]
[1672931441554,34.651524,1251.2,1251.0,0.03850286]
[1672931441555,44.00434126,1251.2,1251.0,0.03850286]
[1672931441942,41.02338832,1251.2,1251.0,0.03850286]
[1672931442575,5.0,1251.1,1251.0,0.03850286]
[1672931442826,31.53875483,1251.1,1251.0,0.03850286]
[1672931443221,5.056,1251.1,1251.0,0.03850286]
[1672931444676,5.056,1251.1,1251.0,8.03210286]
[1672931444995,13.04896,1251.1,1251.0,0.10950286]
[1672931445208,5.056,1251.1,1251.0,0.03850286]
[1672931445462,0.056,1251.1,1251.0,0.03850286]
[1672931445701,8.04865,1251.2,1251.0,0.80650286]
[1672931446202,8.04865,1251.2,1251.0,0.03850286]
[1672931447150,16.04151,1251.2,1251.0,0.03850286]
[1672931447514,24.03437,1251.2,1251.0,0.03850286]
[1672931447758,28.376916,1251.2,1251.0,0.03850286]
[1672931447933,3.5,1251.1,1251.0,0.03850286]
[1672931448146,27.47888,1251.1,1251.0,0.03850286]
[1672931448466,27.53488,1251.1,1251.0,0.03850286]
[1672931448984,24.03488,1251.1,1251.0,0.03850286]
[1672931449358,27.6728876,1251.1,1251.0,0.03850286]
[1672931449732,32.6728876,1251.1,1251.0,0.03850286]
[1672931450599,35.05560241,1251.1,1251.0,0.03850286]
[1672931452088,32.6728876,1251.1,1251.0,0.03850286]
[1672931452450,5.056,1251.1,1251.0,2.54750286]
[1672931452971,5.056,1251.1,1251.0,0.03850286]
[1672931453426,21.04192,1251.1,1251.0,0.03850286]
[1672931453767,13.09896,1251.1,1251.0,0.03850286]
[1672931453925,13.04896,1251.1,1251.0,0.03850286]
[1672931454132,0.056,1251.1,1251.0,0.03850286]
[1672931454362,7.99296,1251.1,1251.0,0.03850286]
[1672931454610,8.04896,1251.1,1251.0,0.03850286]
[1672931454795,27.40992638,1251.1,1251.0,0.03850286]
[1672931455285,29.79264119,1251.1,1251.0,0.03850286]
[1672931455712,32.77359413,1251.1,1251.0,0.03850286]
[1672931456613,37.77359413,1251.1,1251.0,0.03850286]
[1672931458333,18.80672119,1251.1,1251.0,0.03850286]
[1672931458585,7.43871481,1251.1,1251.0,0.03850286]
[1672931458795,5.056,1251.1,1251.0,0.03850286]
[1672931459433,5.056,1251.1,1251.0,10.54110286]
[1672931459646,5.056,1251.1,1251.0,10.61210286]
[1672931460599,0.056,1251.1,1251.0,10.61210286]
[1672931460918,10.37525481,1251.2,1251.0,2.61850286]
[1672931461139,18.42387481,1251.2,1251.0,2.54750286]
[1672931461801,0.056,1251.2,1251.0,10.54109286]
[1672931462016,21.66867775,1251.3,1251.0,31.61325352]
[1672931462264,21.66867775,1251.3,1251.0,35.60240303]
[1672931462265,0.056,1251.3,1251.0,35.60240303]
[1672931462478,5.41966775,1251.4,1251.2,7.99232]
[1672931462660,5.41966775,1251.4,1251.2,8.06332]
[1672931462661,7.38271481,1251.3,1251.2,8.06332]
[1672931462872,7.43871481,1251.3,1251.2,0.54955925]
[1672931463086,7.43871481,1251.3,1251.2,0.47855925]
[1672931463290,7.43871481,1251.3,1251.2,0.47624276]
[1672931463498,2.43871481,1251.3,1251.2,0.47624276]
[1672931463738,2.38271481,1251.3,1251.2,0.47624276]
[1672931464119,2.38271481,1251.3,1251.2,8.46856276]
[1672931464330,3.04695294,1251.4,1251.2,24.52420276]
[1672931464331,2.44871481,1251.4,1251.2,24.52420276]
[1672931464636,5.36366775,1251.4,1251.2,24.52420276]
[1672931464814,5.41966775,1251.4,1251.2,24.52420276]
[1672931465341,2.43871481,1251.4,1251.2,32.16881655]
[1672931465486,0.002,1251.4,1251.3,4.21914951]
[1672931465694,5.41966775,1251.5,1251.3,20.20250951]
[1672931466066,5.41966775,1251.5,1251.3,25.75452242]
[1672931466221,2.38271481,1251.4,1251.3,25.75452242]
[1672931466434,5.42966775,1251.5,1251.3,12.77116242]
[1672931466683,5.41966775,1251.5,1251.3,12.77116242]
[1672931466847,5.41966775,1251.5,1251.3,20.76278242]
[1672931467648,2.43871481,1251.5,1251.3,36.74614242]
[1672931467798,5.36366775,1251.5,1251.3,36.74614242]
[1672931468000,2.43871481,1251.5,1251.3,36.74614242]
[1672931468219,2.38271481,1251.5,1251.3,36.74614242]
[1672931468420,2.38271481,1251.5,1251.4,2.1753]
[1672931468697,5.36366775,1251.5,1251.4,10.16635]
[1672931468902,5.41966775,1251.5,1251.4,10.23735]
[1672931469230,2.43871481,1251.5,1251.4,18.2284]
[1672931469410,2.38271481,1251.5,1251.4,18.2284]
[1672931469744,2.38271481,1251.5,1251.4,17.7941]
[1672931469935,5.36366775,1251.5,1251.4,17.7941]
[1672931470113,5.41966775,1251.5,1251.4,17.7941]
[1672931470321,5.41966775,1251.5,1251.4,21.68733824]
[1672931471427,2.43871481,1251.5,1251.4,21.68733824]
[1672931471607,2.38271481,1251.5,1251.4,17.7941]
[1672931472252,26.95218294,1251.5,1251.4,0.071]
[1672931472425,26.96412779,1251.5,1251.3,3.99605925]
[1672931472572,26.96412779,1251.5,1251.3,3.92505925]
[1672931472573,5.37643554,1251.4,1251.3,3.92505925]
[1672931472784,2.44552691,1251.4,1251.3,3.92505925]
[1672931473108,2.38952691,1251.4,1251.3,3.92505925]
[1672931473309,18.37162691,1251.4,1251.3,3.92505925]
[1672931473527,30.75661818,1251.4,1251.3,0.4465]
[1672931474196,22.76556818,1251.4,1251.3,0.4465]
[1672931474624,14.77451818,1251.4,1251.3,0.4465]
[1672931474814,6.78346818,1251.4,1251.3,0.4465]
[1672931475627,14.77451818,1251.4,1251.3,0.4465]
[1672931475844,30.75661818,1251.4,1251.3,0.4465]
[1672931476314,27.76970955,1251.4,1251.3,0.4465]
[1672931476505,30.75628022,1251.4,1251.3,0.4465]
[1672931476714,6.78313022,1251.4,1251.3,0.4465]
[1672931477096,11.78313022,1251.4,1251.3,0.4465]
[1672931478159,11.78313022,1251.4,1251.3,10.17918]
[1672931478160,10.43188281,1251.4,1251.3,10.17918]
[1672931478417,10.43188281,1251.4,1251.3,10.25018]
[1672931478734,5.43188281,1251.4,1251.3,0.5175]
[1672931478903,5.43188281,1251.4,1251.3,2.1875]
[1672931479095,5.43188281,1251.4,1251.3,18.17086]
[1672931479096,2.44531214,1251.4,1251.3,18.17086]
[1672931479313,2.38931214,1251.4,1251.3,2.2585]
[1672931479541,2.38931214,1251.4,1251.3,2.1875]
[1672931479904,5.37588281,1251.4,1251.3,0.4465]
[1672931480079,21.41398281,1251.4,1251.3,0.4465]
[1672931480270,13.42293281,1251.4,1251.3,0.4465]
[1672931480841,2.44531214,1251.4,1251.3,2.1875]
[1672931481052,2.38931214,1251.4,1251.3,27.20404319]
[1672931481263,2.38931214,1251.4,1251.3,32.56444951]
[1672931481831,5.44188281,1251.5,1251.3,36.55359902]
[1672931482038,5.43188281,1251.5,1251.3,36.55359902]
[1672931482527,2.38931214,1251.4,1251.3,36.55359902]
[1672931482666,2.38931214,1251.4,1251.3,15.2808327]
[1672931483085,2.38931214,1251.4,1251.3,23.2725127]
[1672931484094,5.37588281,1251.4,1251.3,23.26959699]
[1672931484404,5.37588281,1251.4,1251.3,1.55608748]
[1672931484405,5.43188281,1251.4,1251.3,1.55608748]
[1672931484568,7.9324207,1251.4,1251.3,1.48508748]
[1672931484781,7.9324207,1251.4,1251.3,9.47676748]
[1672931485129,5.43188281,1251.4,1251.3,25.53112748]
[1672931485333,5.43188281,1251.4,1251.3,17.53944748]
[1672931485556,5.43188281,1251.4,1251.3,1.55608748]
[1672931485704,5.43188281,1251.4,1251.3,1.48508748]
[1672931486353,5.43188281,1251.4,1251.3,9.47676748]
[1672931486713,2.44531214,1251.4,1251.3,17.53944748]
[1672931486853,2.38931214,1251.4,1251.3,17.53944748]
[1672931487059,2.38931214,1251.4,1251.3,25.53112748]
[1672931487268,2.38931214,1251.4,1251.3,30.64613123]
[1672931488225,2.38931214,1251.4,1251.3,25.53112748]
[1672931488660,5.37588281,1251.4,1251.3,1.55608748]
[1672931489020,3.04257067,1251.4,1251.3,1.48508748]
[1672931489162,10.97762067,1251.4,1251.3,1.48508748]
[1672931489367,3.04257067,1251.4,1251.3,1.48508748]
[1672931489644,30.02040635,1251.4,1251.3,1.48508748]
[1672931489811,6.69859181,1251.4,1251.3,1.48508748]
[1672931490167,3.63790613,1251.4,1251.3,1.04150319]
[1672931490484,3.58190613,1251.4,1251.3,1.04150319]
[1672931492750,3.64790613,1251.5,1251.3,9.03318319]
[1672931492986,3.58190613,1251.5,1251.3,25.08754319]
[1672931493168,5.5768682,1251.5,1251.3,25.08754319]
[1672931493388,2.98969884,1251.4,1251.3,25.08754319]
[1672931494668,2.99027792,1251.4,1251.3,17.09586319]
[1672931495296,11.63849613,1251.5,1251.3,1.11250319]
[1672931495507,2.99053812,1251.4,1251.3,1.04150319]
[1672931495702,5.31148855,1251.4,1251.3,1.04150319]
[1672931495913,0.056,1251.4,1251.3,9.03318319]
[1672931496122,3.58190613,1251.5,1251.3,9.10418319]
[1672931496370,11.57236613,1251.5,1251.3,1.11250319]
[1672931496522,3.58190613,1251.4,1251.3,1.04150319]
[1672931497574,3.58190613,1251.4,1251.3,9.03318319]
[1672931497784,3.58190613,1251.4,1251.3,9.10418319]
[1672931498043,3.58190613,1251.4,1251.3,17.09586319]
[1672931498238,3.58390613,1251.4,1251.3,17.09386319]
[1672931498448,3.58190613,1251.4,1251.3,9.10418319]
[1672931498625,3.58190613,1251.4,1251.3,1.11250319]
[1672931498837,5.60444571,1251.4,1251.3,1.04150319]
[1672931499042,5.66044571,1251.4,1251.3,1.04150319]
[1672931499575,2.07853958,1251.4,1251.3,1.04150319]
[1672931499800,5.61699054,1251.4,1251.3,9.03318319]
[1672931499996,5.67299054,1251.4,1251.3,17.09586319]
[1672931500244,5.67299054,1251.4,1251.3,9.10418319]
[1672931500628,2.07853958,1251.4,1251.3,9.10418319]
[1672931500874,2.02253958,1251.4,1251.3,9.10418319]
[1672931501043,3.59452193,1251.4,1251.3,9.10418319]
[1672931501250,3.59460688,1251.4,1251.3,9.10418319]
[1672931501563,12.15302963,1251.5,1251.3,9.10418319]
[1672931501890,12.14302963,1251.5,1251.3,1.11250319]
[1672931502133,4.19781456,1251.4,1251.3,1.04150319]
[1672931502295,7.01020752,1251.4,1251.3,1.04150319]
[1672931502525,7.06620752,1251.4,1251.3,1.04150319]
[1672931503223,2.86839296,1251.4,1251.3,1.04150319]
[1672931503370,6.40687757,1251.4,1251.3,1.04150319]
[1672931503584,3.65048461,1251.4,1251.3,9.03318319]
[1672931503789,3.65048461,1251.4,1251.3,9.10418319]
[1672931503790,3.59448461,1251.4,1251.3,9.10418319]
[1672931504060,3.59448461,1251.4,1251.3,21.0850127]
[1672931504277,5.39092189,1251.4,1251.3,35.21437497]
[1672931504582,5.44692094,1251.4,1251.3,35.69293422]
[1672931504729,2.45194342,1251.4,1251.3,35.69293422]
[1672931504944,2.39594342,1251.4,1251.3,35.69293422]
[1672931505592,4.19781456,1251.7,1251.4,3.5]
[1672931505593,3.59448461,1251.7,1251.4,3.5]
[1672931505799,2.99386753,1251.6,1251.4,11.401465]
[1672931506012,2.99386753,1251.6,1251.5,35.95078951]
[1672931506300,2.99386753,1251.6,1251.5,36.02178951]
[1672931506434,2.99386753,1251.6,1251.5,36.25178951]
[1672931506666,3.05986753,1251.7,1251.5,39.25178951]
[1672931506874,2.99386753,1251.7,1251.5,43.96605594]
[1672931507055,2.99386753,1251.6,1251.5,43.96605594]
[1672931507263,3.05986753,1251.7,1251.5,43.96605594]
[1672931507528,2.99386753,1251.7,1251.5,43.96605594]
[1672931507726,2.99386753,1251.7,1251.6,3.98914951]
[1672931507892,2.99386753,1251.7,1251.6,32.5850651]
[1672931508120,2.99386753,1251.7,1251.6,32.6560651]
[1672931509466,10.98299753,1251.7,1251.6,4.46760559]
[1672931509676,2.99786753,1251.7,1251.5,3.54955925]
[1672931509935,2.99386753,1251.6,1251.5,15.45801876]
[1672931510093,2.99386753,1251.6,1251.5,15.75902876]
[1672931510307,2.99386753,1251.6,1251.5,23.51943876]
[1672931510567,2.99386753,1251.6,1251.5,29.30027219]
[1672931510788,3.05986753,1251.7,1251.5,37.29068219]
[1672931511102,2.99386753,1251.7,1251.5,37.29068219]
[1672931511709,3.82729616,1251.8,1251.5,16.84199343]
[1672931511710,2.99386753,1251.6,1251.5,16.84199343]
[1672931511899,2.99386753,1251.6,1251.5,32.82256343]
[1672931512112,2.99386753,1251.6,1251.5,36.81171294]
[1672931512329,3.05986753,1251.7,1251.5,45.03212294]
[1672931512680,2.99386753,1251.7,1251.6,7.98977]
[1672931512923,2.99386753,1251.7,1251.6,0.071]
[1672931512924,10.98299753,1251.7,1251.6,0.071]
[1672931513042,2.99786753,1251.7,1251.5,10.99016]
[1672931513247,2.99386753,1251.7,1251.5,22.77403638]
[1672931513478,2.99386753,1251.6,1251.5,22.77403638]
[1672931513686,2.99386753,1251.6,1251.5,27.04166]
[1672931514147,2.99386753,1251.6,1251.5,3.071]
[1672931514356,2.99586753,1251.6,1251.5,3.0]
[1672931514573,2.99386753,1251.6,1251.5,3.0]
[1672931514758,13.04861482,1251.6,1251.4,0.5652]
[1672931514967,2.98922136,1251.5,1251.4,0.4942]
[1672931515271,21.10483482,1251.6,1251.4,0.4942]
[1672931515619,6.48939223,1251.5,1251.4,0.4942]
[1672931515798,5.45820671,1251.5,1251.4,0.4942]
[1672931516009,17.04310132,1251.5,1251.4,0.4942]
[1672931516584,33.50248057,1251.5,1251.3,1.03804384]
[1672931516797,25.50515217,1251.5,1251.3,1.03804384]
[1672931517629,1.741,1251.4,1251.3,1.03804384]
[1672931517806,32.82541343,1251.4,1251.3,1.03804384]
[1672931517969,37.82941343,1251.4,1251.3,1.03804384]
[1672931519269,34.24184722,1251.4,1251.3,1.03804384]
[1672931519489,18.25974722,1251.4,1251.3,1.03804384]
[1672931519634,2.99340334,1251.4,1251.3,25.01308384]
[1672931519849,2.98940334,1251.4,1251.3,1.10904384]
[1672931520215,2.98940334,1251.4,1251.3,1.03804384]
[1672931520405,2.98940334,1251.4,1251.3,9.02972384]
[1672931520574,2.98940334,1251.4,1251.3,1.10904384]
[1672931520788,2.98940334,1251.4,1251.3,1.03804384]
[1672931521418,3.65510334,1251.5,1251.3,9.02972384]
[1672931521631,3.58910334,1251.5,1251.3,17.09240384]
[1672931521895,3.58910334,1251.5,1251.3,25.08408384]
[1672931522062,2.98940334,1251.5,1251.3,28.39166122]
[1672931522952,0.066,1251.6,1251.4,3.98914951]
[1672931523095,2.98940334,1251.7,1251.5,27.96037951]
[1672931523306,2.98940334,1251.7,1251.5,28.50993876]
[1672931523579,2.98940334,1251.7,1251.6,3.98914951]
[1672931523580,0.05,1251.7,1251.6,3.98914951]
[1672931523745,0.05,1251.7,1251.6,11.97891951]
[1672931523746,5.0,1251.7,1251.6,11.97891951]
[1672931523950,5.004,1251.7,1251.6,30.88038939]
[1672931524268,0.004,1251.7,1251.6,22.89061939]
[1672931524498,3.15621489,1251.8,1251.6,14.90084939]
[1672931524713,3.15621489,1251.8,1251.6,6.91107939]
[1672931524924,3.15621489,1251.8,1251.6,4.06014951]
[1672931525109,3.15621489,1251.8,1251.6,11.97885951]
[1672931525321,2.98940334,1251.7,1251.6,20.03962951]
[1672931525554,0.002,1251.7,1251.6,20.03762951]
[1672931525766,3.15621489,1251.8,1251.6,31.67901539]
[1672931525951,0.16681155,1251.8,1251.7,3.98914951]
[1672931526163,0.16681155,1251.8,1251.7,29.21914951]
[1672931526407,0.16681155,1251.8,1251.7,54.25489876]
[1672931526620,0.08521155,1251.8,1251.7,54.25489876]
[1672931526838,0.05671155,1251.8,1251.7,60.84432122]
[1672931527148,0.00031155,1251.8,1251.7,60.84432122]
[1672931527370,0.16930969,1252.0,1251.9,31.9514]
[1672931527516,0.16930969,1252.0,1251.9,36.01154951]
[1672931527892,0.16930969,1252.0,1251.9,28.50225876]
[1672931528043,0.16930969,1252.0,1251.9,31.40521464]
[1672931529576,0.16930969,1252.0,1251.9,31.63521464]
[1672931531823,9.69e-06,1252.0,1251.9,56.63521464]
[1672931532037,0.1786715,1252.1,1252.0,3.5]
[1672931532244,0.1786715,1252.1,1252.0,34.68080951]
[1672931532453,0.17657277,1252.2,1252.0,47.84417708]
[1672931532678,0.17657277,1252.2,1252.1,29.21914951]
[1672931532889,0.17657277,1252.2,1252.1,53.24988951]
[1672931533150,0.17657277,1252.2,1252.1,53.72844876]
[1672931534935,0.1737415,1252.2,1252.1,53.72844876]
[1672931535151,0.1737415,1252.2,1252.1,58.27453832]
[1672931535523,0.1737415,1252.2,1252.1,26.31479832]
[1672931535738,0.1737415,1252.2,1252.1,58.27453832]
[1672931540305,0.1737415,1252.2,1252.1,50.27453832]
[1672931540480,0.1737415,1252.2,1252.1,36.27453832]
[1672931541435,0.1737415,1252.2,1252.1,44.27453832]
[1672931541833,0.1737415,1252.2,1252.1,58.27453832]
[1672931543498,0.1737415,1252.2,1252.1,23.03330951]
[1672931544041,0.1737415,1252.2,1252.1,31.01988951]
[1672931549798,0.1737415,1252.2,1252.1,31.49844876]
[1672931550791,0.17657277,1252.4,1252.1,31.72844876]
[1672931550996,0.17657277,1252.4,1252.2,3.98914951]
[1672931551167,0.17657277,1252.4,1252.3,35.93034951]
[1672931551377,0.17657277,1252.4,1252.3,36.00134951]
[1672931552954,0.17657277,1252.4,1252.3,28.01604951]
[1672931554316,0.22657277,1252.4,1252.3,28.01604951]
[1672931554526,0.17657277,1252.4,1252.3,28.01604951]
[1672931555725,0.17657277,1252.4,1252.3,20.03074951]
[1672931555950,1.91757277,1252.4,1252.3,0.071]
[1672931556135,0.17657277,1252.4,1252.3,7.9853]
[1672931556471,0.17657277,1252.4,1252.3,0.071]
[1672931556685,0.17657277,1252.4,1252.2,16.04205]
[1672931557003,0.17657277,1252.4,1252.3,15.9706]
[1672931557148,0.17657277,1252.4,1252.3,16.0416]
[1672931557625,0.17657277,1252.4,1252.3,8.0563]
[1672931559109,3.11597611,1252.4,1252.3,8.0563]
[1672931559811,3.81380688,1252.4,1252.3,0.071]
[1672931560024,16.79372354,1252.4,1252.2,0.071]
[1672931560241,19.83173062,1252.4,1252.1,3.071]
[1672931560447,2.98200708,1252.3,1252.1,10.98647]
[1672931560659,20.93586014,1252.3,1252.1,3.071]
[1672931560873,5.02118014,1252.3,1252.1,7.98651]
[1672931561089,3.5,1252.2,1252.1,0.071]
[1672931561278,3.5,1252.2,1252.0,0.071]
[1672931561506,13.01657014,1252.3,1252.0,7.98721]
[1672931561718,16.50657014,1252.3,1252.0,8.05821]
[1672931562110,8.52118014,1252.3,1252.0,8.05821]
[1672931562315,2.98200708,1252.2,1252.0,8.05821]
[1672931562530,2.98200708,1252.2,1252.0,24.03265]
[1672931562531,3.83412509,1252.2,1252.0,24.03265]
[1672931564989,2.98200708,1252.1,1252.0,24.03265]
[1672931565192,3.04800708,1252.2,1252.0,28.02179951]
[1672931565404,2.98200708,1252.2,1252.0,28.02179951]
[1672931565651,2.98200708,1252.2,1252.0,34.28165046]
[1672931566408,3.04800708,1252.3,1252.0,34.28165046]
[1672931566628,2.98200708,1252.2,1252.0,34.28165046]
[1672931566838,3.04800708,1252.3,1252.1,3.98914951]
[1672931566984,2.98200708,1252.3,1252.2,31.94376]
[1672931567189,2.98200708,1252.3,1252.2,32.01476]
[1672931567469,11.07497985,1252.4,1252.2,32.01476]
[1672931567775,2.98200708,1252.3,1252.2,32.49331925]
[1672931567989,2.98200708,1252.3,1252.2,36.14156613]
[1672931569122,2.98200708,1252.3,1252.2,40.13071564]
[1672931569339,3.78013898,1252.4,1252.2,40.13071564]
[1672931569340,3.17457985,1252.4,1252.2,40.13071564]
[1672931569651,3.10857985,1252.4,1252.2,40.13071564]
[1672931570871,0.27476537,1252.5,1252.3,4.54544951]
[1672931571081,3.19077245,1252.5,1252.4,3.98914951]
[1672931571354,0.20876537,1252.5,1252.4,28.65168876]
[1672931571668,0.20876537,1252.5,1252.4,28.72268876]
[1672931573332,0.20876537,1252.5,1252.4,28.01412951]
[1672931575064,0.21076537,1252.5,1252.4,28.01212951]
[1672931575278,0.20876537,1252.5,1252.4,28.01412951]
[1672931576307,0.20876537,1252.5,1252.4,35.38027382]
[1672931577848,0.20876537,1252.5,1252.4,38.61027382]
[1672931578306,0.20876537,1252.5,1252.4,39.08883307]
[1672931578739,5.37e-06,1252.5,1252.4,39.08883307]
[1672931580638,0.87369268,1252.7,1252.5,0.002]
[1672931580824,0.87369268,1252.7,1252.6,65.90609951]
[1672931581159,0.87369268,1252.7,1252.6,75.74212437]
[1672931581370,0.87369268,1252.7,1252.6,75.97212437]
[1672931582903,0.87369268,1252.7,1252.6,59.98873437]
[1672931583107,0.87369268,1252.7,1252.6,67.98873437]
[1672931583350,0.87369268,1252.7,1252.6,60.00534437]
[1672931584572,0.22050961,1252.8,1252.6,60.00534437]
[1672931584776,0.22050961,1252.8,1252.7,11.19770876]
[1672931585014,0.22050961,1252.8,1252.7,38.86520564]
[1672931585196,0.27054673,1252.9,1252.7,38.86520564]
[1672931585464,0.27054673,1252.9,1252.8,17.98914951]
[1672931585668,6.73e-06,1252.9,1252.8,53.00650951]
[1672931585900,0.27054673,1253.0,1252.8,53.23650951]
[1672931586181,0.27054673,1253.0,1252.9,7.46770876]
[1672931586388,0.21503277,1253.1,1252.9,23.73166876]
[1672931586616,0.21503277,1253.1,1253.0,41.95082951]
[1672931586863,0.21503277,1253.1,1253.0,42.50038876]
[1672931587019,0.21503277,1253.1,1253.0,45.50038876]
[1672931587223,0.21503277,1253.1,1253.0,11.05184]
[1672931587474,1.95603277,1253.1,1253.0,11.05184]
[1672931587685,2.21636205,1253.1,1253.0,8.05184]
[1672931587919,5.19836913,1253.1,1253.0,0.071]
[1672931588089,5.85336913,1253.1,1252.8,8.0526]
[1672931588442,5.85336913,1253.1,1252.8,16.03269]
[1672931588594,5.85336913,1253.1,1252.8,8.0526]
[1672931589225,2.98200708,1253.0,1252.8,0.071]
[1672931589435,0.5991,1252.9,1252.6,7.9833]
[1672931589717,0.002,1252.9,1252.6,8.0523]
[1672931589861,5.45857482,1253.0,1252.6,8.0543]
[1672931590324,2.98200708,1252.9,1252.6,0.071]
[1672931590493,3.5,1252.8,1252.5,0.002]
[1672931591075,18.17157048,1252.9,1252.5,3.99114951]
[1672931591076,2.20803048,1252.9,1252.5,3.99114951]
[1672931591246,16.22591557,1253.0,1252.5,27.94314951]
[1672931591439,16.21591557,1253.0,1252.6,3.98914951]
[1672931591812,0.056,1253.0,1252.8,14.0]
[1672931591971,0.26503277,1253.1,1252.9,35.91506951]
[1672931592173,0.21503277,1253.1,1252.9,35.98606951]
[1672931592710,0.21503277,1253.1,1253.0,3.98914951]
[1672931593035,0.21503277,1253.1,1253.0,23.59729239]
[1672931593218,0.21503277,1253.1,1253.0,23.66829239]
[1672931593424,0.21503277,1253.1,1253.0,24.14685164]
[1672931593733,0.19776385,1253.3,1253.0,49.97585164]
[1672931593900,0.19776385,1253.3,1253.2,23.93871]
[1672931594110,0.19776385,1253.3,1253.2,24.00971]
[1672931594787,0.19776385,1253.3,1253.2,27.99885951]
[1672931594994,0.19776385,1253.3,1253.2,31.89497064]
[1672931595242,0.19776385,1253.3,1253.2,34.89497064]
[1672931595362,0.19776385,1253.3,1253.2,35.60352989]
[1672931595919,0.19776385,1253.3,1253.2,19.41438989]
[1672931596136,0.19776385,1253.3,1253.2,23.49784876]
[1672931596465,0.19776385,1253.3,1253.2,31.47741876]
[1672931596640,0.19776385,1253.3,1253.2,27.48826925]
[1672931596854,0.19776385,1253.3,1253.2,31.47741876]
[1672931597187,3.85e-06,1253.3,1253.2,53.47741876]
[1672931597398,3.85e-06,1253.3,1253.2,61.30996464]
[1672931599484,3.85e-06,1253.3,1253.2,60.83140539]
[1672931600857,3.85e-06,1253.3,1253.2,60.82940539]
[1672931601046,3.85e-06,1253.3,1253.2,60.83140539]